fUSD/lending_fUSD_20260314
["ID","MTS","AMOUNT","RATE_DAILY","PERIOD"]
[408362551,1773496245156,-500.0,0.00018736,2]
[408362552,1773496245165,-500.0,0.00018736,2]
[408362553,1773496245175,-500.0,0.00018736,2]
[408362554,1773496245183,-500.0,0.00018736,2]
[408362555,1773496245194,-500.0,0.00018736,2]
[408362556,1773496245203,-500.0,0.00018736,2]
[408362557,1773496245212,-500.0,0.00018736,2]
[408362558,1773496245222,-500.0,0.00018736,2]
[408362559,1773496245231,-500.0,0.00018736,2]
[408362560,1773496245240,-500.0,0.00018736,2]
[408362561,1773496245251,-500.0,0.00018736,2]
[408362562,1773496245260,-259281.21270061,0.00018737,2]
[408362563,1773496245295,-316.38,0.00018737,2]
[408362564,1773496245356,-57570.09494732,0.00018737,2]
[408362568,1773496245594,-1024050.19445207,0.00018737,2]
[408362569,1773496245604,-500.0,0.00018773,2]
[408362570,1773496245613,-590.78943584,0.000188,4]
[408362571,1773496245623,-618.66438233,0.000188,4]
[408362572,1773496245632,-1350.4699839,0.000188,4]
[408362573,1773496245642,-4100.0,0.000188,6]
[408362574,1773496245651,-1000.0,0.00018835,2]
[408362575,1773496245661,-2975.4377,0.00018836,2]
[408362576,1773496245670,-2500.0,0.00018836,2]
[408362577,1773496245679,-363.57407282,0.00018836,2]
[408362578,1773496245689,-5500.0,0.000189,6]
[408362579,1773496245699,-166.66,0.00018914,2]
[408362580,1773496245709,-200.0,0.00018924,2]
[408362581,1773496245718,-151.0,0.00018924,2]
[408362582,1773496245728,-151.0,0.00018924,2]
[408362583,1773496245737,-151.0,0.00018924,2]
[408362584,1773496245747,-151.0,0.00018924,2]
[408362585,1773496245756,-151.0,0.00018924,2]
[408362586,1773496245765,-151.0,0.00018924,2]
[408362588,1773496245774,-151.0,0.00018924,2]
[408362589,1773496245783,-151.0,0.00018924,2]
[408362590,1773496245792,-151.0,0.00018924,2]
[408362591,1773496245801,-151.0,0.00018924,2]
[408362592,1773496245811,-151.0,0.00018924,2]
[408362593,1773496245819,-180.35798024,0.00018926,2]
[408362594,1773496245828,-2431.488,0.00018926,2]
[408362595,1773496245837,-500.0,0.00018935,2]
[408362596,1773496245847,-500.0,0.00018935,2]
[408362597,1773496245855,-500.0,0.00018935,2]
[408362598,1773496245865,-500.0,0.00018935,2]
[408362599,1773496245875,-500.0,0.00018935,2]
[408362600,1773496245884,-500.0,0.00018935,2]
[408362601,1773496245893,-500.0,0.00018935,2]
[408362602,1773496245903,-500.0,0.00018935,2]
[408362603,1773496245912,-500.0,0.00018935,2]
[408362604,1773496245929,-500.0,0.00018935,2]
[408362605,1773496245940,-500.0,0.00018935,2]
[408362606,1773496245949,-574.55,0.00018935,2]
[408362607,1773496245960,-535.69,0.00018935,2]
[408362615,1773496246165,-500.0,0.00018935,2]
[408362617,1773496246175,-500.0,0.00018935,2]
[408362619,1773496246183,-500.0,0.00018935,2]
[408362621,1773496246194,-500.0,0.00018935,2]
[408362623,1773496246203,-500.0,0.00018935,2]
[408362625,1773496246213,-500.0,0.00018935,2]
[408362628,1773496246224,-500.0,0.00018935,2]
[408362629,1773496246234,-500.0,0.00018935,2]
[408362631,1773496246243,-500.0,0.00018935,2]
[408362633,1773496246253,-500.0,0.00018935,2]
[408362635,1773496246262,-500.0,0.00018935,2]
[408362637,1773496246271,-500.0,0.00018935,2]
[408362638,1773496246279,-500.0,0.00018935,2]
[408362639,1773496246288,-500.0,0.00018935,2]
[408362640,1773496246297,-500.0,0.00018935,2]
[408362641,1773496246306,-500.0,0.00018935,2]
[408362642,1773496246315,-500.0,0.00018935,2]
[408362643,1773496246324,-500.0,0.00018935,2]
[408362644,1773496246333,-500.0,0.00018935,2]
[408362645,1773496246342,-500.0,0.00018935,2]
[408362646,1773496246352,-507.73038979,0.00018935,2]
[408362647,1773496246361,-500.0,0.00018935,2]
[408362648,1773496246370,-500.0,0.00018935,2]
[408362649,1773496246380,-513.58200217,0.00018935,2]
[408362650,1773496246389,-500.0,0.00018935,2]
[408362651,1773496246398,-500.0,0.00018935,2]
[408362652,1773496246407,-500.0,0.00018935,2]
[408362653,1773496246417,-500.0,0.00018935,2]
[408362654,1773496246426,-500.0,0.00018935,2]
[408362655,1773496246435,-500.0,0.00018935,2]
[408362656,1773496246444,-500.0,0.00018935,2]
[408362657,1773496246454,-500.0,0.00018935,2]
[408362658,1773496246463,-500.0,0.00018935,2]
[408362659,1773496246473,-500.0,0.00018935,2]
[408362660,1773496246482,-500.0,0.00018935,2]
[408362661,1773496246492,-500.0,0.00018935,2]
[408362662,1773496246501,-500.0,0.00018935,2]
[408362663,1773496246510,-500.0,0.00018935,2]
[408362664,1773496246520,-500.0,0.00018935,2]
[408362665,1773496246530,-500.0,0.00018935,2]
[408362666,1773496246539,-500.0,0.00018935,2]
[408362667,1773496246548,-500.0,0.00018935,2]
[408362668,1773496246557,-500.0,0.00018935,2]
[408362669,1773496246566,-500.0,0.00018935,2]
[408362670,1773496246575,-500.0,0.00018935,2]
[408362671,1773496246584,-500.0,0.00018935,2]
[408362672,1773496246594,-500.0,0.00018935,2]
[408362673,1773496246603,-500.0,0.00018935,2]
[408362674,1773496246612,-500.0,0.00018935,2]
[408362675,1773496246621,-500.0,0.00018935,2]
[408362676,1773496246630,-1516.51,0.00018936,2]
[408362677,1773496246639,-154.12017095,0.00018937,2]
[408362678,1773496246649,-500.0,0.00018968,2]
[408362679,1773496246658,-500.0,0.00018968,2]
[408362680,1773496246667,-500.66398075,0.00018973,2]
[408362681,1773496246676,-500.0,0.00018973,2]
[408362682,1773496246686,-167.95560281,0.00018973,2]
[408362683,1773496246695,-500.0,0.00018973,2]
[408362684,1773496246704,-500.44254829,0.00018973,2]
[408362685,1773496246714,-505.18477373,0.00018973,2]
[408362686,1773496246723,-500.0,0.00019036,2]
[408362687,1773496246732,-500.0,0.00019036,2]
[408362688,1773496246741,-500.0,0.00019036,2]
[408362689,1773496246750,-202.10153577,0.00019036,2]
[408362690,1773496246759,-308.46140861,0.00019036,2]
[408362691,1773496246768,-500.0,0.00019036,2]
[408362692,1773496246778,-318.69238869,0.00019036,2]
[408362693,1773496246787,-500.0,0.00019036,2]
[408362694,1773496246795,-500.0,0.00019036,2]
[408362695,1773496246804,-500.0,0.00019036,2]
[408362696,1773496246814,-181.4106691,0.00019036,2]
[408362697,1773496246823,-500.0,0.00019036,2]
[408362698,1773496246833,-500.0,0.00019036,2]
[408362699,1773496246841,-500.0,0.00019036,2]
[408362700,1773496246851,-500.0,0.00019036,2]
[408362701,1773496246859,-500.0,0.00019036,2]
[408362702,1773496246868,-500.0,0.00019036,2]
[408362703,1773496246878,-292.01024919,0.00019036,2]
[408362704,1773496246887,-224.26972842,0.00019036,2]
[408362705,1773496246896,-500.0,0.00019036,2]
[408362706,1773496246905,-500.0,0.00019036,2]
[408362707,1773496246914,-500.0,0.00019036,2]
[408362708,1773496246923,-1258.756719,0.00019037,2]
[408362709,1773496246932,-3424.2991946,0.00019037,2]
[408362710,1773496246941,-2179.4247206,0.00019037,2]
[408362711,1773496246951,-19471.4032457,0.00019037,2]
[408362712,1773496246959,-375.832979,0.00019037,2]
[408362713,1773496246968,-151.0,0.00019037,2]
[408362714,1773496246977,-375.832979,0.00019037,2]
[408362715,1773496246986,-375.832979,0.00019037,2]
[408362716,1773496246995,-375.832979,0.00019037,2]
[408362717,1773496247005,-110585.2422193,0.00019037,2]
[408362718,1773496247014,-151.0,0.00019037,2]
[408362719,1773496247024,-151.0,0.00019037,2]
[408362720,1773496247033,-151.0,0.00019037,2]
[408362721,1773496247042,-151.0,0.00019037,2]
[408362722,1773496247051,-151.0,0.00019037,2]
[408362723,1773496247060,-151.0,0.00019037,2]
[408362724,1773496247069,-151.0,0.00019037,2]
[408362725,1773496247080,-151.0,0.00019037,2]
[408362726,1773496247091,-230.003363,0.00019037,2]
[408362727,1773496247101,-230.003363,0.00019037,2]
[408362728,1773496247111,-181.485896,0.00019037,2]
[408362729,1773496247121,-230.003363,0.00019037,2]
[408362730,1773496247131,-181.485896,0.00019037,2]
[408362731,1773496247140,-230.003363,0.00019037,2]
[408362732,1773496247154,-181.485896,0.00019037,2]
[408362733,1773496247163,-181.485896,0.00019037,2]
[408362734,1773496247172,-783.763292,0.00019037,2]
[408362735,1773496247182,-783.763292,0.00019037,2]
[408362736,1773496247193,-783.763292,0.00019037,2]
[408362737,1773496247203,-783.763292,0.00019037,2]
[408362738,1773496247212,-150.0,0.00019037,2]
[408362739,1773496247223,-163.41247159,0.00019037,2]
[408362740,1773496247233,-151.0,0.00019074,2]
[408362741,1773496247242,-204.6,0.00019074,2]
[408362742,1773496247251,-553.988829,0.00019136,2]
[408362743,1773496247260,-553.988829,0.00019136,2]
[408362744,1773496247269,-553.988829,0.00019136,2]
[408362745,1773496247278,-553.988829,0.00019136,2]
[408362746,1773496247287,-151.0,0.00019136,2]
[408362747,1773496247296,-151.0,0.00019136,2]
[408362748,1773496247305,-645.123573,0.00019136,2]
[408362749,1773496247315,-645.123573,0.00019136,2]
[408362750,1773496247324,-645.123573,0.00019136,2]
[408362751,1773496247334,-645.123573,0.00019136,2]
[408362752,1773496247343,-500.0,0.00019178,2]
[408362753,1773496247352,-151.0,0.00019178,2]
[408362754,1773496247362,-151.0,0.00019178,2]
[408362755,1773496247371,-151.0,0.00019178,2]
[408362756,1773496247381,-168.0,0.0001918,2]
[408362757,1773496247391,-2000.0,0.000192,2]
[408362758,1773496247401,-535.69,0.00019209,2]
[408362759,1773496247410,-250.0,0.0001921,2]
[408362760,1773496247420,-168.0,0.00019225,2]
[408362761,1773496247429,-168.0,0.00019315,2]
[408362762,1773496247439,-2392.30456086,0.00019346,2]
[408362763,1773496247448,-168.0,0.0001943,2]
[408362764,1773496247457,-200.0,0.00019472,2]
[408362765,1773496247467,-535.69,0.00019483,2]
[408362766,1773496247476,-588.71981686,0.00019512,6]
[408362767,1773496247486,-1680.0,0.00019512,2]
[408362768,1773496247495,-168.0,0.00019514,2]
[408362769,1773496247505,-168.0,0.00019538,2]
[408362770,1773496247514,-166.66,0.00019542,2]
[408362771,1773496247525,-344.2,0.00019552,2]
[408362772,1773496247535,-178.05,0.00019586,2]
[408362773,1773496247544,-200.0,0.00019597,2]
[408362774,1773496247553,-1204.16,0.00019721,2]
[408362775,1773496247563,-535.69,0.00019757,2]
[408362776,1773496247572,-168.0,0.00019785,2]
[408362777,1773496247581,-168.0,0.0001985,2]
[408362778,1773496247590,-168.0,0.00019891,2]
[408362779,1773496247600,-500.0,0.00019899,2]
[408362780,1773496247609,-151.0,0.00019973,2]
[408362781,1773496247618,-151.0,0.00019973,2]
[408362782,1773496247627,-151.0,0.00019973,2]
[408362783,1773496247637,-151.0,0.00019973,2]
[408362784,1773496247646,-151.0,0.00019973,2]
[408362785,1773496247659,-151.0,0.00019973,2]
[408362786,1773496247679,-168.0,0.00019984,2]
[408362787,1773496247700,-151.0,0.00019984,2]
[408362788,1773496247713,-151.0,0.00019984,2]
[408362789,1773496247723,-151.986024,0.00019984,2]
[408362790,1773496247731,-151.0,0.00019984,2]
[408362791,1773496247740,-151.0,0.00019984,2]
[408362792,1773496247749,-151.0,0.00019997,2]
[408362793,1773496247758,-500.0,0.00019999,2]
[408362794,1773496247768,-500.0,0.00019999,2]
[408362795,1773496247778,-3512.063432,0.0002,2]
[408362796,1773496247787,-155102.48042135,0.0002,2]
[408362797,1773496247796,-255.82,0.0002,2]
[408362798,1773496247805,-1800.0,0.0002,2]
[408362799,1773496247815,-1317.84763407,0.0002,2]
[408362800,1773496247824,-200.0,0.0002,2]
[408362801,1773496247834,-151.0,0.0002,2]
[408362802,1773496247843,-151.0,0.0002,2]
[408362803,1773496247853,-151.0,0.0002,2]
[408362804,1773496247862,-151.0,0.0002,2]
[408362805,1773496247872,-151.0,0.0002,2]
[408362806,1773496247884,-820.573515,0.0002,2]
[408362807,1773496247895,-820.573515,0.0002,2]
[408362808,1773496247910,-820.573515,0.0002,2]
[408362809,1773496247923,-820.573515,0.0002,2]
[408362810,1773496247935,-151.0,0.0002,2]
[408362811,1773496247947,-151.0,0.0002,2]
[408362812,1773496247958,-375.832979,0.0002,2]
[408362813,1773496247968,-151.0,0.0002,2]
[408362814,1773496247978,-375.832979,0.0002,2]
[408362815,1773496247989,-375.832979,0.0002,2]
[408362816,1773496248000,-375.832979,0.0002,2]
[408362817,1773496248011,-151.0,0.0002,2]
[408362818,1773496248022,-151.0,0.0002,2]
[408362819,1773496248033,-151.0,0.0002,2]
[408362820,1773496248043,-158.081187,0.0002,2]
[408362821,1773496248055,-200.0,0.0002,2]
[408362822,1773496248077,-151.0,0.0002,2]
[408362823,1773496248099,-151.0,0.0002,2]
[408362824,1773496248117,-151.0,0.0002,2]
[408362825,1773496248140,-151.0,0.0002,3]
[408362826,1773496248163,-151.0,0.0002,3]
[408362827,1773496248187,-151.0,0.0002,3]
[408362828,1773496248206,-151.0,0.0002,3]
[408362829,1773496248219,-151.0,0.0002,3]
[408362830,1773496248238,-151.0,0.0002,3]
[408362831,1773496248249,-151.0,0.0002,3]
[408362832,1773496248262,-151.0,0.0002,3]
[408362833,1773496248273,-151.0,0.0002,3]
[408362834,1773496248286,-151.0,0.0002,3]
[408362835,1773496248297,-151.0,0.0002,3]
[408362836,1773496248311,-151.0,0.0002,3]
[408362837,1773496248322,-151.0,0.0002,3]
[408362838,1773496248335,-151.0,0.0002,3]
[408362839,1773496248347,-151.0,0.0002,3]
[408362840,1773496248361,-151.0,0.0002,3]
[408362841,1773496248373,-151.0,0.0002,3]
[408362842,1773496248388,-151.0,0.0002,3]
[408362843,1773496248404,-151.0,0.0002,3]
[408362844,1773496248417,-151.0,0.0002,3]
[408362845,1773496248431,-151.0,0.0002,3]
[408362846,1773496248444,-151.0,0.0002,3]
[408362847,1773496248458,-151.0,0.0002,3]
[408362848,1773496248473,-151.0,0.0002,3]
[408362849,1773496248486,-151.0,0.0002,3]
[408362850,1773496248498,-151.0,0.0002,3]
[408362851,1773496248511,-220.231932,0.0002,3]
[408362852,1773496248522,-151.0,0.0002,2]
[408362853,1773496248534,-151.0,0.0002,2]
[408362854,1773496248548,-151.0,0.0002,2]
[408362855,1773496248561,-230.003363,0.0002,2]
[408362856,1773496248573,-230.003363,0.0002,2]
[408362857,1773496248585,-181.485896,0.0002,2]
[408362858,1773496248599,-230.003363,0.0002,2]
[408362859,1773496248609,-181.485896,0.0002,2]
[408362860,1773496248620,-230.003363,0.0002,2]
[408362861,1773496248633,-181.485896,0.0002,2]
[408362862,1773496248643,-181.485896,0.0002,2]
[408362863,1773496248655,-152.5029,0.0002,2]
[408362864,1773496248666,-783.763292,0.0002,2]
[408362865,1773496248677,-783.763292,0.0002,2]
[408362866,1773496248687,-783.763292,0.0002,2]
[408362867,1773496248698,-783.763292,0.0002,2]
[408362868,1773496248711,-553.988829,0.0002,2]
[408362869,1773496248722,-553.988829,0.0002,2]
[408362870,1773496248733,-553.988829,0.0002,2]
[408362871,1773496248743,-553.988829,0.0002,2]
[408362872,1773496248753,-150.82953139,0.0002,2]
[408362873,1773496248764,-151.0,0.0002,2]
[408362874,1773496248774,-151.0,0.0002,2]
[408362875,1773496248784,-645.123573,0.0002,2]
[408362876,1773496248795,-645.123573,0.0002,2]
[408362877,1773496248805,-645.123573,0.0002,2]
[408362878,1773496248815,-645.123573,0.0002,2]
[408362879,1773496248824,-151.0,0.0002,2]
[408362880,1773496248834,-200.0,0.0002,2]
[408362881,1773496248844,-260.392067,0.0002,2]
[408362882,1773496248854,-151.0,0.0002,2]
[408362883,1773496248864,-151.0,0.0002,2]
[408362884,1773496248875,-197.334425,0.0002,2]
[408362885,1773496248888,-197.334425,0.0002,2]
[408362886,1773496248899,-197.334425,0.0002,2]
[408362887,1773496248910,-197.334425,0.0002,2]
[408362888,1773496248919,-151.0,0.0002,2]
[408362889,1773496248929,-200.0,0.0002002,2]
[408362890,1773496248939,-535.72,0.00020031,2]
[408362891,1773496248949,-204.6,0.00020078,2]
[408362892,1773496248958,-168.0,0.00020097,2]
[408362893,1773496248968,-168.0,0.00020099,2]
[408362894,1773496248978,-168.0,0.00020102,2]
[408362895,1773496248988,-168.0,0.00020112,2]
[408362896,1773496248999,-168.0,0.00020143,2]
[408362897,1773496249013,-166.66,0.00020187,2]
[408362898,1773496249024,-200.0,0.000202,2]
[408362899,1773496249035,-200.0,0.000202,2]
[408362900,1773496249046,-200.0,0.000202,2]
[408362901,1773496249059,-168.0,0.00020245,2]
[408362902,1773496249069,-160.0,0.00020295,2]
[408362903,1773496249079,-200.0,0.00020402,2]
[408362904,1773496249089,-200.0,0.00020402,2]
[408362905,1773496249100,-200.0,0.00020402,2]
[408362906,1773496249110,-300.0,0.000205,2]
[408362907,1773496249120,-168.0,0.00020534,2]
[408362908,1773496249130,-168.0,0.00020536,2]
[408362909,1773496249140,-158.51,0.00020548,2]
[408362910,1773496249155,-153.49,0.000206,7]
[408362911,1773496249166,-200.0,0.00020606,2]
[408362912,1773496249176,-1204.16,0.0002066,2]
[408362913,1773496249187,-4557.99,0.000207,2]
[408362914,1773496249197,-168.0,0.00020776,2]
[408362915,1773496249208,-200.0,0.00020812,2]
[408362916,1773496249218,-166.66,0.00020832,2]
[408362917,1773496249229,-232.0,0.00020834,2]
[408362918,1773496249239,-168.0,0.0002092,2]
[408362919,1773496249250,-344.2,0.00020922,2]
[408362920,1773496249260,-168.0,0.00020986,2]
[408362921,1773496249270,-380.0,0.00020986,2]
[408362922,1773496249281,-1199.82709888,0.00021,2]
[408362923,1773496249292,-198.04144275,0.00021,2]
[408362924,1773496249303,-160.0,0.00021,7]
[408362925,1773496249313,-1968.0,0.00021,3]
[408362926,1773496249323,-1158.98655363,0.00021045,9]
[408362927,1773496249334,-168.0,0.00021053,2]
[408362928,1773496249344,-204.6,0.00021082,2]
[408362929,1773496249355,-480.0,0.00021399,2]
[408362930,1773496249367,-166.66,0.00021477,2]
[408362931,1773496249377,-764.0644277,0.00021488,2]
[408362932,1773496249387,-4344.6573245,0.00021488,2]
[408362933,1773496249401,-24674.9028064,0.00021488,2]
[408362934,1773496249412,-223.43211581,0.000215,2]
[408362935,1773496249423,-1204.16,0.00021599,2]
[408362936,1773496249434,-168.0,0.00021734,2]
[408362937,1773496249444,-500.0,0.00021756,2]
[408362938,1773496249456,-8506.72021269,0.00021811,2]
[408362939,1773496249467,-151.58915917,0.00021891,5]
[408362940,1773496249477,-154.2,0.00021918,2]
[408362941,1773496249488,-5000.0,0.00021918,2]
[408362942,1773496249498,-151.0,0.00021918,2]
[408362943,1773496249509,-151.0,0.00021918,2]
[408362944,1773496249521,-254.378285,0.00021918,2]
[408362945,1773496249531,-151.0,0.00021918,2]
[408362946,1773496249541,-151.0,0.00021918,2]
[408362947,1773496249552,-150.0,0.00021929,7]
[408362948,1773496249562,-252.703254,0.00021931,7]
[408362949,1773496249572,-804.81716361,0.00022,7]
[408362950,1773496249583,-164.92,0.00022,2]
[408362951,1773496249594,-160.0,0.00022,2]
[408362952,1773496249604,-170.4858181,0.00022035,2]
[408362953,1773496249615,-969.4240846,0.00022035,2]
[408362954,1773496249625,-5505.7150148,0.00022035,2]
[408362955,1773496249636,-204.6,0.00022086,2]
[408362956,1773496249646,-497.46772579,0.000221,2]
[408362957,1773496249657,-241.75836056,0.0002211,2]
[408362958,1773496249667,-166.66,0.00022122,2]
[408362959,1773496249678,-620.0,0.00022535,2]
[408362960,1773496249689,-2463.0,0.00022535,2]
[408362961,1773496249699,-414.0,0.00022535,2]
[408362962,1773496249710,-3753.0,0.00022535,2]
[408362963,1773496249720,-1204.16,0.00022538,2]
[408362964,1773496249731,-413.61,0.00022562,2]
[408362965,1773496249741,-150.99,0.00022562,2]
[408362966,1773496249752,-150.99,0.00022562,2]
[408362967,1773496249766,-9999.99,0.00022562,2]
[408362968,1773496249778,-9999.99,0.00022562,2]
[408362969,1773496249788,-9999.99,0.00022562,2]
[408362970,1773496249799,-1729.2532904,0.00022578,13]
[408362971,1773496249810,-526.50289857,0.0002271,2]
[408362972,1773496249822,-150.0,0.00022718,2]
[408362973,1773496249833,-150.0,0.00022718,2]
[408362974,1773496249844,-150.0,0.00022718,2]
[408362975,1773496249854,-150.0,0.00022718,2]
[408362976,1773496249864,-166.66,0.00022767,2]
[408362977,1773496249874,-859.59086346,0.000228,2]
[408362978,1773496249884,-859.59086345,0.000228,2]
[408362979,1773496249894,-859.59086345,0.000228,2]
[408362980,1773496249904,-859.59086345,0.000228,2]
[408362981,1773496249914,-2000.0,0.000229,2]
[408362982,1773496249924,-252.44665031,0.00022943,7]
[408362983,1773496249934,-641.62453643,0.00023,7]
[408362984,1773496249944,-204.6,0.0002309,2]
[408362985,1773496249954,-3886.38039427,0.00023143,2]
[408362986,1773496249964,-232.0,0.00023149,2]
[408362987,1773496249974,-883.91131588,0.000232,2]
[408362988,1773496250181,-200.0,0.000235,2]
[408362989,1773496250200,-150.0,0.000239,14]
[408362990,1773496250209,-363.5740728,0.00023997,2]
[408362991,1773496250219,-1028.27263572,0.00024,2]
[408362992,1773496250229,-1243.2295206,0.00024,2]
[408362993,1773496250238,-204.6,0.00024094,2]
[408362994,1773496250247,-1000.0,0.0002411,2]
[408362995,1773496250256,-1918.89925303,0.0002411,16]
[408362996,1773496250265,-424.74139032,0.0002421,2]
[408362997,1773496250273,-154.2,0.00024335,2]
[408362998,1773496250282,-1998.0,0.00024384,2]
[408362999,1773496250292,-2010.59503453,0.00024657,2]
[408363000,1773496250300,-1999.0,0.00024658,2]
[408363001,1773496250310,-1000.0,0.00024658,2]
[408363002,1773496250319,-151.0,0.00024658,2]
[408363003,1773496250329,-151.0,0.00024658,2]
[408363004,1773496250338,-152.055082,0.00024658,2]
[408363005,1773496250347,-156.157635,0.00024658,2]
[408363006,1773496250356,-507.0,0.00024875,9]
[408363007,1773496250365,-151.0,0.000249,2]
[408363008,1773496250374,-151.0,0.000249,2]
[408363009,1773496250384,-151.0,0.000249,2]
[408363010,1773496250393,-151.0,0.000249,2]
[408363011,1773496250403,-151.0,0.000249,2]
[408363012,1773496250412,-151.0,0.000249,2]
[408363013,1773496250421,-151.0,0.000249,2]
[408363014,1773496250431,-151.0,0.000249,2]
[408363015,1773496250440,-151.0,0.000249,2]
[408363016,1773496250450,-151.0,0.000249,2]
[408363017,1773496250463,-151.0,0.000249,2]
[408363018,1773496250473,-151.0,0.000249,2]
[408363019,1773496250483,-151.0,0.000249,2]
[408363020,1773496250492,-151.0,0.000249,2]
[408363021,1773496250501,-151.0,0.000249,2]
[408363022,1773496250511,-230.003363,0.000249,2]
[408363023,1773496250520,-230.003363,0.000249,2]
[408363024,1773496250529,-230.003363,0.000249,2]
[408363025,1773496250539,-181.485896,0.000249,2]
[408363026,1773496250548,-230.003363,0.000249,2]
[408363027,1773496250557,-181.485896,0.000249,2]
[408363028,1773496250567,-230.003363,0.000249,2]
[408363029,1773496250576,-181.485896,0.000249,2]
[408363030,1773496250585,-230.003363,0.000249,2]
[408363031,1773496250594,-181.485896,0.000249,2]
[408363032,1773496250603,-230.003363,0.000249,2]
[408363033,1773496250612,-230.003363,0.000249,2]
[408363034,1773496250621,-181.485896,0.000249,2]
[408363035,1773496250631,-181.485896,0.000249,2]
[408363036,1773496250640,-181.485896,0.000249,2]
[408363037,1773496250650,-181.485896,0.000249,2]
[408363038,1773496250660,-783.763292,0.000249,2]
[408363039,1773496250669,-783.763292,0.000249,2]
[408363040,1773496250679,-783.763292,0.000249,2]
[408363041,1773496250688,-783.763292,0.000249,2]
[408363042,1773496250697,-783.763292,0.000249,2]
[408363043,1773496250707,-783.763292,0.000249,2]
[408363044,1773496250717,-783.763292,0.000249,2]
[408363045,1773496250726,-783.763292,0.000249,2]
[408363046,1773496250736,-151.0,0.000249,2]
[408363047,1773496250744,-6800.0,0.000249,9]
[408363048,1773496250754,-300.0,0.000249,3]
[408363049,1773496250763,-300.0,0.000249,3]
[408363050,1773496250773,-300.0,0.000249,3]
[408363051,1773496250782,-300.0,0.000249,3]
[408363052,1773496250792,-300.0,0.000249,3]
[408363053,1773496250801,-231.176919,0.000249,2]
[408363054,1773496250810,-553.988829,0.000249,2]
[408363055,1773496250819,-553.988829,0.000249,2]
[408363056,1773496250829,-553.988829,0.000249,2]
[408363057,1773496250838,-553.988829,0.000249,2]
[408363058,1773496250849,-151.0,0.000249,2]
[408363059,1773496250859,-645.123573,0.000249,2]
[408363060,1773496250869,-645.123573,0.000249,2]
[408363061,1773496250878,-645.123573,0.000249,2]
[408363062,1773496250888,-645.123573,0.000249,2]
[408363063,1773496250898,-154.242032,0.000249,2]
[408363064,1773496250907,-151.0,0.000249,2]
[408363065,1773496250916,-151.0,0.000249,2]
[408363066,1773496250925,-197.334425,0.000249,2]
[408363067,1773496250935,-197.334425,0.000249,2]
[408363068,1773496250944,-197.334425,0.000249,2]
[408363069,1773496250953,-197.334425,0.000249,2]
[408363070,1773496250963,-151.0,0.000249,2]
[408363071,1773496250972,-8506.72021269,0.00024922,2]
[408363072,1773496250982,-1119.02038488,0.00025,2]